[Event "98th Caplin Hastings Masters 2024-25"]
[Site "Hastings"]
[Date "2024.12.30"]
[Round "4.27"]
[White "White, Stuart A"]
[Black "Muir, Andrew J"]
[Result "1/2-1/2"]
[ECO "A13"]
[WhiteElo "2017"]
[BlackElo "2214"]
[Annotator "NA"]
[PlyCount "167"]
[EventDate "2024.12.23"]
[EventType "swiss"]
[EventCountry "ENG"]
[SourceTitle "playchess.com"]
[Source "ChessBase"]
[SourceQuality "1"]
[TimeControl "5400+30"]

1. c4 {[%emt 0:00:01]} e6 {[%emt 0:00:05]} 2. g3 {[%emt 0:00:03]} d5 {[%emt 0:00:07]} 3. Bg2 {[%emt 0:00:02]} Nf6 {[%emt 0:00:06]} 4. Nf3 {[%emt 0:00:03]} dxc4 {[%emt 0:00:12]} 5. Qa4+ {[%emt 0:00:06]} Nbd7 {[%emt 0:00:17]} 6. Qxc4 {[%emt 0:00:06]} c5 {[%emt 0:00:08]} 7. d3 {[%emt 0:00:07]} a6 {[%emt 0:01:28]} 8. Qb3 {[%emt 0:00:19]} Qc7 {[%emt 0:01:48]} 9. a4 {[%emt 0:00:44]} b6 {[%emt 0:00:58]} 10. Na3 {[%emt 0:00:34]} Bb7 {[%emt 0:02:54]} 11. Nc4 {[%emt 0:00:28]} Nd5 {[%emt 0:07:20]} 12. e4 {[%emt 0:10:22]} Nb4 {[%emt 0:00:10]} 13. Bf4 {[%emt 0:00:13]} Qc6 {[%emt 0:00:31]} 14. O-O {[%emt 0:04:46]} Be7 {[%emt 0:00:20]} 15. Rfd1 {[%emt 0:07:31]} O-O {[%emt 0:00:19]} 16. d4 {[%emt 0:05:48]} Rfd8 {[%emt 0:05:52]} 17. d5 {[%emt 0:23:37]} exd5 {[%emt 0:00:50]} 18. exd5 {[%emt 0:00:03]} Nxd5 {[%emt 0:00:29]} 19. Rxd5 {[%emt 0:01:22]} Qxd5 {[%emt 0:00:12]} 20. Ne1 {[%emt 0:00:02]} Qe6 {[%emt 0:02:30]} 21. Bxb7 {[%emt 0:00:06]} Ra7 {[%emt 0:00:47]} 22. Bg2 {[%emt 0:00:09]} g5 {[%emt 0:05:36]} 23. Be3 {[%emt 0:01:37]} Rb8 {[%emt 0:12:06]} 24. Qc2 {[%emt 0:02:25]} Ne5 {[%emt 0:04:52]} 25. Nxe5 {[%emt 0:01:27]} Qxe5 {[%emt 0:00:05]} 26. Nf3 {[%emt 0:00:27]} Qg7 {[%emt 0:00:38]} 27. Nd2 {[%emt 0:05:53]} Rd7 {[%emt 0:00:56]} 28. Be4 {[%emt 0:03:24]} Bf6 {[%emt 0:01:20]} 29. Rb1 {[%emt 0:03:28]} Bd4 {[%emt 0:02:27]} 30. Nf1 {[%emt 0:04:49]} Rbd8 {[%emt 0:02:52]} 31. b3 {[%emt 0:07:44]} Bxe3 {[%emt 0:06:20]} 32. Nxe3 {[%emt 0:00:05]} Rd2 {[%emt 0:00:01]} 33. Rd1 {[%emt 0:02:30]} Rxd1+ {[%emt 0:01:20]} 34. Nxd1 {[%emt 0:00:03]} h6 {[%emt 0:00:43]} 35. Ne3 {[%emt 0:00:38]} Qd4 {[%emt 0:01:44]} 36. Bb7 {[%emt 0:00:49]} Qd3 {[%emt 0:01:32]} 37. Qxd3 {[%emt 0:03:08]} Rxd3 {[%emt 0:00:06]} 38. Bxa6 {[%emt 0:00:12]} Rxb3 {[%emt 0:00:04]} 39. Bb5 {[%emt 0:00:05]} Rb1+ {[%emt 0:01:08]} 40. Kg2 {[%emt 0:00:16]} Re1 {[%emt 0:00:07]} 41. Kf3 {[%emt 0:01:50]} h5 {[%emt 0:02:17]} 42. h4 {[%emt 0:03:04]} f6 {[%emt 0:01:34]} 43. Ke4 {[%emt 0:04:01]} Kf7 {[%emt 0:00:58]} 44. hxg5 {[%emt 0:00:59]} fxg5 {[%emt 0:00:11]} 45. Kf5 {[%emt 0:00:13]} h4 {[%emt 0:00:55]} 46. gxh4 {[%emt 0:00:07]} gxh4 {[%emt 0:00:05]} 47. Kg4 {[%emt 0:00:59]} Rh1 {[%emt 0:00:31]} 48. Nc4 {[%emt 0:01:16]} h3 {[%emt 0:11:45]} 49. Kg3 {[%emt 0:00:16]} Kf6 {[%emt 0:02:41]} 50. Nxb6 {[%emt 0:00:38]} Ke5 {[%emt 0:00:19]} 51. Nc4+ {[%emt 0:00:28]} Kd4 {[%emt 0:00:04]} 52. Ne3 {[%emt 0:00:28]} Kc3 {[%emt 0:06:11]} 53. Bc6 {[%emt 0:02:15]} Rg1+ {[%emt 0:02:30]} 54. Kxh3 {[%emt 0:00:03]} Kb4 {[%emt 0:00:02]} 55. Bb5 {[%emt 0:00:24]} Kc3 {[%emt 0:02:19]} 56. f4 {[%emt 0:01:35]} Kd4 {[%emt 0:00:08]} 57. Kh2 {[%emt 0:03:24]} Rg8 {[%emt 0:00:52]} 58. Nc4 {[%emt 0:01:01]} Ke4 {[%emt 0:00:15]} 59. a5 {[%emt 0:00:27]} Kxf4 {[%emt 0:00:09]} 60. Bc6 {[%emt 0:00:20]} Rg6 {[%emt 0:00:32]} 61. Bb7 {[%emt 0:00:08]} Re6 {[%emt 0:00:46]} 62. Kg2 {[%emt 0:00:30]} Re2+ {[%emt 0:00:06]} 63. Kf1 {[%emt 0:00:15]} Ra2 {[%emt 0:01:44]} 64. a6 {[%emt 0:00:06]} Ra4 {[%emt 0:00:20]} 65. Nb6 {[%emt 0:00:29]} Ra2 {[%emt 0:00:39]} 66. Ke1 {[%emt 0:00:55]} Ke3 {[%emt 0:00:12]} 67. Kd1 {[%emt 0:00:18]} Kd3 {[%emt 0:02:36]} 68. Kc1 {[%emt 0:00:03]} c4 {[%emt 0:03:27]} 69. Nd5 {[%emt 0:01:15]} Ra5 {[%emt 0:02:22]} 70. Nb4+ {[%emt 0:01:02]} Kc3 {[%emt 0:00:17]} 71. Nd5+ {[%emt 0:00:03]} Kb3 {[%emt 0:00:41]} 72. Kd2 {[%emt 0:00:20]} Ra2+ {[%emt 0:00:09]} 73. Ke3 {[%emt 0:00:10]} c3 {[%emt 0:00:32]} 74. Nf4 {[%emt 0:01:04]} Ra1 {[%emt 0:03:11]} 75. Ne2 {[%emt 0:00:45]} c2 {[%emt 0:01:05]} 76. Nd4+ {[%emt 0:00:06]} Kb2 {[%emt 0:00:13]} 77. Nxc2 {[%emt 0:00:03]} Kxc2 {[%emt 0:00:03]} 78. Kd4 {[%emt 0:00:09]} Ra5 {[%emt 0:00:45]} 79. Kc4 {[%emt 0:00:05]} Kb2 {[%emt 0:00:32]} 80. Kb4 {[%emt 0:00:09]} Ra1 {[%emt 0:00:06]} 81. Kb5 {[%emt 0:00:08]} Kc3 {[%emt 0:00:06]} 82. Kb6 {[%emt 0:00:13]} Kb4 {[%emt 0:00:07]} 83. a7 {[%emt 0:00:09]} Rxa7 {[%emt 0:00:43]} 84. Kxa7 {[%emt 0:00:30]} 1/2-1/2

[Event "98th Caplin Hastings Masters 2024-25"]
[Site "Hastings"]
[Date "2024.12.30"]
[Round "4.28"]
[White "Li, Jack"]
[Black "Rayner, Francis"]
[Result "1-0"]
[ECO "B28"]
[WhiteElo "1717"]
[BlackElo "2013"]
[Annotator "RC"]
[PlyCount "75"]
[EventDate "2024.12.23"]
[EventType "swiss"]
[EventCountry "ENG"]
[SourceTitle "playchess.com"]
[Source "ChessBase"]
[SourceQuality "1"]
[TimeControl "5400+30"]

1. e4 {[%emt 0:00:03]} c5 {[%emt 0:14:48]} 2. Nf3 {[%emt 0:00:05]} a6 {[%emt 0:00:18]} 3. c3 {[%emt 0:00:06]} d6 {[%emt 0:02:34]} 4. d4 {[%emt 0:07:05]} Nf6 {[%emt 0:01:06]} 5. Bd3 {[%emt 0:00:54]} cxd4 {[%emt 0:02:27]} 6. cxd4 {[%emt 0:00:52]} g6 {[%emt 0:01:19]} 7. e5 {[%emt 0:18:16]} dxe5 {[%emt 0:01:34]} 8. dxe5 {[%emt 0:00:05]} Nd5 {[%emt 0:02:05]} 9. Be4 {[%emt 0:01:52]} Be6 {[%emt 0:05:30]} 10. O-O {[%emt 0:08:07]} Nc6 {[%emt 0:02:30]} 11. Qd2 {[%emt 0:13:15]} Bg7 {[%emt 0:04:55]} 12. Rd1 {[%emt 0:01:38]} Nb6 {[%emt 0:02:01]} 13. Qc2 {[%emt 0:02:29]} Qc7 {[%emt 0:07:12]} 14. Nd4 {[%emt 0:13:07]} O-O {[%emt 0:04:30]} 15. Nxe6 {[%emt 0:00:48]} fxe6 {[%emt 0:00:05]} 16. f4 {[%emt 0:01:23]} Rad8 {[%emt 0:01:03]} 17. Rxd8 {[%emt 0:02:34]} Rxd8 {[%emt 0:00:33]} 18. Nc3 {[%emt 0:04:35]} Nd5 {[%emt 0:02:09]} 19. Qf2 {[%emt 0:04:44]} Ncb4 {[%emt 0:04:34]} 20. Bd2 {[%emt 0:05:56]} Qc4 {[%emt 0:04:10]} 21. b3 {[%emt 0:00:42]} Qc7 {[%emt 0:03:18]} 22. Nxd5 {[%emt 0:02:52]} Nxd5 {[%emt 0:00:34]} 23. Rc1 {[%emt 0:00:26]} Qd7 {[%emt 0:01:00]} 24. g3 {[%emt 0:01:13]} Rc8 {[%emt 0:02:03]} 25. Rxc8+ {[%emt 0:00:38]} Qxc8 {[%emt 0:00:01]} 26. Qd4 {[%emt 0:00:18]} Qc6 {[%emt 0:03:24]} 27. Kf2 {[%emt 0:01:06]} Qb5 {[%emt 0:00:50]} 28. Bd3 {[%emt 0:00:57]} Qc6 {[%emt 0:00:31]} 29. h4 {[%emt 0:00:15]} Kf7 {[%emt 0:03:33]} 30. a4 {[%emt 0:02:10]} Qb6 {[%emt 0:01:41]} 31. Qxb6 {[%emt 0:00:14]} Nxb6 {[%emt 0:00:01]} 32. Ke3 {[%emt 0:01:31]} h6 {[%emt 0:04:44]} 33. Kd4 {[%emt 0:00:43]} Nd7 {[%emt 0:01:02]} 34. Be4 {[%emt 0:01:53]} b6 {[%emt 0:00:42]} 35. a5 {[%emt 0:00:40]} bxa5 {[%emt 0:01:02]} 36. Bxa5 {[%emt 0:00:14]} g5 {[%emt 0:03:25]} 37. h5 {[%emt 0:00:14]} gxf4 {[%emt 0:02:52]} 38. gxf4 {[%emt 0:00:04]} 1-0

[Event "98th Caplin Hastings Masters 2024-25"]
[Site "Hastings"]
[Date "2024.12.30"]
[Round "4.29"]
[White "Malinovskii, Ilia"]
[Black "Kolani, Arjun"]
[Result "1/2-1/2"]
[ECO "C28"]
[WhiteElo "2003"]
[BlackElo "2131"]
[Annotator "NA"]
[PlyCount "89"]
[EventDate "2024.12.23"]
[EventType "swiss"]
[EventCountry "ENG"]
[SourceTitle "playchess.com"]
[Source "ChessBase"]
[SourceQuality "1"]
[TimeControl "5400+30"]

1. e4 {[%emt 0:00:04]} e5 {[%emt 0:00:09]} 2. Nc3 {[%emt 0:00:06]} Nf6 {[%emt 0:00:07]} 3. Bc4 {[%emt 0:00:06]} Nc6 {[%emt 0:00:30]} 4. d3 {[%emt 0:00:08]} Bc5 {[%emt 0:00:26]} 5. f4 {[%emt 0:00:09]} d6 {[%emt 0:00:21]} 6. Nf3 {[%emt 0:00:08]} exf4 {[%emt 0:00:06]} 7. Bxf4 {[%emt 0:00:07]} O-O {[%emt 0:00:27] is recently more successful than 7...Bg4. C28: Vienna Game: 2...Nf6 3 Bc4 Nc6.} 8. d4 {[%emt 0:00:17]} Bb6 {[%emt 0:04:09]} 9. Bg5 {[%emt 0:02:00]} h6 {[%emt 0:07:39]} 10. Bxf6 {[%emt 0:00:36]} Qxf6 {[%emt 0:00:55]} 11. Nd5 {[%emt 0:00:38]} Qd8 $146 {[%emt 0:05:52]} ({Predecessor:} 11... Qg6 12. O-O Bg4 13. c3 Qxe4 14. h3 Ne5 15. Nxb6 axb6 16. dxe5 Bxf3 17. Qxf3 Qxc4 18. exd6 {½-½ Fecker,N (2388)-Mladek,R (2436) Mitropa Cup Mali Losinj 2023 (2.3)}) 12. O-O {[%emt 0:03:16]} Ne7 {[%emt 0:06:48]} 13. Nf4 {[%emt 0:05:34]} c6 {[%emt 0:20:12]} 14. Bd3 {[%emt 0:06:01]} c5 {[%emt 0:04:38]} 15. c3 {[%emt 0:00:52]} Bg4 {[%emt 0:04:57]} 16. Bc2 {[%emt 0:06:54]} cxd4 {[%emt 0:02:49]} 17. cxd4 {[%emt 0:00:13]} Nc6 {[%emt 0:03:42]} 18. Ne2 {[%emt 0:04:40]} f5 {[%emt 0:02:42]} 19. Bb3+ {[%emt 0:10:27]} Kh7 {[%emt 0:02:59]} 20. exf5 {[%emt 0:00:50]} Bxf5 {[%emt 0:00:44]} 21. Kh1 {[%emt 0:07:19]} Be4 {[%emt 0:07:58]} 22. d5 {[%emt 0:06:00]} Ne5 {[%emt 0:02:36]} 23. Bc2 {[%emt 0:01:42]} Bxc2 {[%emt 0:00:36]} 24. Qxc2+ {[%emt 0:00:05]} Kg8 {[%emt 0:01:13]} 25. Nxe5 {[%emt 0:01:02]} dxe5 {[%emt 0:00:06]} 26. Qe4 {[%emt 0:00:58]} Qd6 {[%emt 0:02:11]} 27. Ng3 {[%emt 0:02:33]} g6 {[%emt 0:02:47]} 28. Qh4 {[%emt 0:08:09]} Kg7 {[%emt 0:02:55]} 29. Qg4 {[%emt 0:06:41]} Rxf1+ {[%emt 0:05:27]} 30. Rxf1 {[%emt 0:00:07]} Rf8 {[%emt 0:00:13]} 31. Rxf8 {[%emt 0:02:13]} Qxf8 {[%emt 0:00:42]} 32. d6 {[%emt 0:08:46]} h5 {[%emt 0:05:39]} 33. Qg5 {[%emt 0:05:21]} Qd8 {[%emt 0:02:11]} 34. Qd2 {[%emt 0:09:54]} Bd4 {[%emt 0:00:34]} 35. Ne4 {[%emt 0:01:37]} Qf8 {[%emt 0:00:30]} 36. Qc1 {[%emt 0:00:11]} Qf5 {[%emt 0:01:06]} 37. Ng3 {[%emt 0:00:52]} Qd3 {[%emt 0:01:19]} 38. d7 {[%emt 0:01:55]} Bb6 {[%emt 0:00:28]} 39. Qe1 {[%emt 0:00:50]} Qxd7 {[%emt 0:00:39]} 40. Qxe5+ {[%emt 0:00:06]} Kh7 {[%emt 0:00:18]} 41. Qe1 {[%emt 0:00:25]} Qd4 {[%emt 0:00:36]} 42. Qe7+ {[%emt 0:00:52]} Qg7 {[%emt 0:00:32]} 43. Qe2 {[%emt 0:00:22]} Qd4 {[%emt 0:00:19]} 44. Qe7+ {[%emt 0:00:10]} Qg7 {[%emt 0:00:36]} 45. Qe2 $11 {[%emt 0:00:05]} 1/2-1/2

[Event "98th Caplin Hastings Masters 2024-25"]
[Site "Hastings"]
[Date "2024.12.30"]
[Round "4.30"]
[White "Zhu, Yaoyao"]
[Black "Patel, Zain"]
[Result "0-1"]
[ECO "C50"]
[WhiteElo "1990"]
[BlackElo "2099"]
[Annotator "RC"]
[PlyCount "78"]
[EventDate "2024.12.23"]
[EventType "swiss"]
[EventCountry "ENG"]
[SourceTitle "playchess.com"]
[Source "ChessBase"]
[SourceQuality "1"]
[TimeControl "5400+30"]

1. e4 {[%emt 0:02:46]} e5 {[%emt 0:00:34]} 2. Nf3 {[%emt 0:00:04]} Nc6 {[%emt 0:00:06]} 3. Bc4 {[%emt 0:00:03]} Nf6 {[%emt 0:01:47]} 4. d3 {[%emt 0:00:06]} Bc5 {[%emt 0:00:53]} 5. Nc3 {[%emt 0:00:07]} O-O {[%emt 0:01:53]} 6. a3 {[%emt 0:00:05]} a5 {[%emt 0:02:55]} 7. h3 {[%emt 0:00:19]} h6 {[%emt 0:00:40]} 8. g4 {[%emt 0:01:48]} Nh7 {[%emt 0:07:05]} 9. Rg1 {[%emt 0:02:17]} Nd4 {[%emt 0:02:55]} 10. Be3 {[%emt 0:10:50]} Nxf3+ {[%emt 0:10:08]} 11. Qxf3 {[%emt 0:00:05]} Bxe3 {[%emt 0:00:38]} 12. Qxe3 {[%emt 0:02:32]} c6 {[%emt 0:00:42]} 13. Qg3 {[%emt 0:12:16]} b5 {[%emt 0:04:41]} 14. Bb3 {[%emt 0:01:12]} a4 {[%emt 0:04:45]} 15. Ba2 {[%emt 0:00:13]} Qe7 {[%emt 0:03:35]} 16. h4 {[%emt 0:03:57]} b4 {[%emt 0:02:11]} 17. axb4 {[%emt 0:01:11]} g6 {[%emt 0:08:32]} 18. Bc4 {[%emt 0:17:53]} Qxb4 {[%emt 0:05:57]} 19. Kd2 {[%emt 0:21:34]} Ra5 {[%emt 0:05:33]} 20. g5 {[%emt 0:04:02]} h5 {[%emt 0:07:06]} 21. Rgf1 {[%emt 0:02:09]} Bb7 {[%emt 0:02:51]} 22. f4 {[%emt 0:06:16]} d5 {[%emt 0:01:19]} 23. Ba2 {[%emt 0:00:08]} d4 {[%emt 0:02:05]} 24. fxe5 {[%emt 0:00:56]} a3 {[%emt 0:01:43]} 25. Rxf7 {[%emt 0:02:15]} Rxf7 {[%emt 0:03:59]} 26. Rf1 {[%emt 0:02:49]} axb2 {[%emt 0:00:28]} 27. Bxf7+ {[%emt 0:01:26]} Kh8 {[%emt 0:00:23]} 28. Bb3 {[%emt 0:02:04]} dxc3+ {[%emt 0:01:16]} 29. Ke2 {[%emt 0:00:09]} Ba6 {[%emt 0:02:21]} 30. Qf4 {[%emt 0:01:06]} Qe7 {[%emt 0:03:11]} 31. e6 {[%emt 0:00:47]} Rb5 {[%emt 0:00:14]} 32. Qe3 {[%emt 0:00:43]} Qd6 {[%emt 0:02:23]} 33. e7 {[%emt 0:02:52]} Rb8 {[%emt 0:01:22]} 34. Qa7 {[%emt 0:00:00]} c5 {[%emt 0:01:41]} 35. Rf7 {[%emt 0:00:00]} Re8 {[%emt 0:00:38]} 36. Rf1 {[%emt 0:00:51]} Qh2+ {[%emt 0:01:14]} 37. Rf2 {[%emt 0:00:01]} Qb8 {[%emt 0:01:22]} 38. Qxa6 {[%emt 0:01:07]} b1=Q {[%emt 0:00:11]} 39. Qxg6 {[%emt 0:00:22]} c4 {[%emt 0:01:57]} 0-1

[Event "98th Caplin Hastings Masters 2024-25"]
[Site "Hastings"]
[Date "2024.12.30"]
[Round "4.31"]
[White "Chandler, Cliff R"]
[Black "Gu In-Jung"]
[Result "0-1"]
[ECO "B20"]
[WhiteElo "2161"]
[BlackElo "1987"]
[Annotator "RC"]
[PlyCount "74"]
[EventDate "2024.12.23"]
[EventType "swiss"]
[EventCountry "ENG"]
[SourceTitle "playchess.com"]
[Source "ChessBase"]
[SourceQuality "1"]
[TimeControl "5400+30"]

1. e4 {[%emt 0:00:03]} c5 {[%emt 0:01:50]} 2. b4 {[%emt 0:00:15]} cxb4 {[%emt 0:00:05]} 3. a3 {[%emt 0:00:07]} d5 {[%emt 0:00:04]} 4. exd5 {[%emt 0:00:10]} Qxd5 {[%emt 0:00:05]} 5. Nf3 {[%emt 0:00:11]} e5 {[%emt 0:00:12]} 6. c4 {[%emt 0:00:50]} Qd8 {[%emt 0:00:23]} 7. Bb2 {[%emt 0:03:14]} f6 {[%emt 0:03:21]} 8. Be2 {[%emt 0:01:59]} Nc6 {[%emt 0:07:08]} 9. O-O {[%emt 0:07:09]} bxa3 {[%emt 0:21:07]} 10. Nxa3 {[%emt 0:01:23]} Bc5 {[%emt 0:00:12]} 11. d4 {[%emt 0:07:40]} exd4 {[%emt 0:05:56]} 12. Nb5 {[%emt 0:03:31]} Nge7 {[%emt 0:02:36]} 13. Nfxd4 {[%emt 0:00:22]} Nxd4 {[%emt 0:01:12]} 14. Nxd4 {[%emt 0:00:12]} O-O {[%emt 0:00:34]} 15. Nb3 {[%emt 0:03:28]} Bb4 {[%emt 0:04:55]} 16. Bf3 {[%emt 0:07:11]} a5 {[%emt 0:01:15]} 17. Nd4 {[%emt 0:02:53]} Rb8 {[%emt 0:09:10]} 18. Qe2 {[%emt 0:10:28]} Qb6 {[%emt 0:03:56]} 19. Nb5 {[%emt 0:11:23]} Bd7 {[%emt 0:03:42]} 20. Bd4 {[%emt 0:04:40]} Qe6 {[%emt 0:02:03]} 21. Qxe6+ {[%emt 0:04:13]} Bxe6 {[%emt 0:00:04]} 22. Rfc1 {[%emt 0:00:59]} b6 {[%emt 0:21:05]} 23. Nc7 {[%emt 0:04:24]} Bc8 {[%emt 0:02:02]} 24. c5 {[%emt 0:09:36]} Nf5 {[%emt 0:00:18]} 25. Bc3 {[%emt 0:04:15]} bxc5 {[%emt 0:00:57]} 26. Bxb4 {[%emt 0:00:34]} cxb4 {[%emt 0:01:45]} 27. Rxa5 {[%emt 0:01:07]} Nd4 {[%emt 0:00:47]} 28. Rd5 {[%emt 0:07:06]} Nxf3+ {[%emt 0:01:36]} 29. gxf3 {[%emt 0:00:04]} Bb7 {[%emt 0:01:42]} 30. Rd3 {[%emt 0:02:00]} Rfc8 {[%emt 0:00:23]} 31. Kg2 {[%emt 0:01:00]} h6 {[%emt 0:02:38]} 32. Rd7 {[%emt 0:00:43]} b3 {[%emt 0:00:31]} 33. Re1 {[%emt 0:01:50]} Bc6 {[%emt 0:00:28]} 34. Rde7 {[%emt 0:00:31]} b2 {[%emt 0:00:45]} 35. Ne6 {[%emt 0:00:30]} b1=Q {[%emt 0:03:13]} 36. Rxb1 {[%emt 0:00:11]} Rxb1 {[%emt 0:00:00]} 37. Rxg7+ {[%emt 0:00:07]} Kh8 {[%emt 0:00:00]} 0-1

[Event "98th Caplin Hastings Masters 2024-25"]
[Site "Hastings"]
[Date "2024.12.30"]
[Round "4.32"]
[White "Briem, Benedikt"]
[Black "Sciupokas, Arunas"]
[Result "1-0"]
[ECO "D02"]
[WhiteElo "2132"]
[BlackElo "1969"]
[Annotator "RC"]
[PlyCount "77"]
[EventDate "2024.12.23"]
[EventType "swiss"]
[EventCountry "ENG"]
[SourceTitle "playchess.com"]
[Source "ChessBase"]
[SourceQuality "1"]
[TimeControl "5400+30"]

1. d4 {[%emt 0:02:57]} Nc6 {[%emt 0:00:16]} 2. Nf3 {[%emt 0:01:40]} d5 {[%emt 0:00:15]} 3. Bf4 {[%emt 0:00:40]} Nf6 {[%emt 0:01:38]} 4. h3 {[%emt 0:01:14]} e6 {[%emt 0:04:45]} 5. e3 {[%emt 0:00:19]} Bd6 {[%emt 0:02:41]} 6. Bxd6 {[%emt 0:02:21]} Qxd6 {[%emt 0:00:44]} 7. Nbd2 {[%emt 0:01:19]} O-O {[%emt 0:05:48]} 8. c3 {[%emt 0:02:21]} e5 {[%emt 0:05:36]} 9. dxe5 {[%emt 0:01:12]} Nxe5 {[%emt 0:00:03]} 10. Nxe5 {[%emt 0:00:14]} Qxe5 {[%emt 0:00:06]} 11. Nf3 {[%emt 0:00:52]} Qe7 {[%emt 0:02:47]} 12. Bd3 {[%emt 0:00:32]} c5 {[%emt 0:05:45]} 13. O-O {[%emt 0:00:15]} b6 {[%emt 0:04:04]} 14. Qe2 {[%emt 0:01:52]} Bb7 {[%emt 0:02:04]} 15. Ba6 {[%emt 0:14:21]} Bc6 {[%emt 0:02:42]} 16. a4 {[%emt 0:00:44]} Rab8 {[%emt 0:06:31]} 17. Bb5 {[%emt 0:02:19]} Qc7 {[%emt 0:05:59]} 18. Rfd1 {[%emt 0:07:55]} a5 {[%emt 0:02:00]} 19. Bxc6 {[%emt 0:01:18]} Qxc6 {[%emt 0:00:09]} 20. c4 {[%emt 0:00:32]} Rfd8 {[%emt 0:03:18]} 21. cxd5 {[%emt 0:00:50]} Rxd5 {[%emt 0:04:38]} 22. Rxd5 {[%emt 0:04:48]} Qxd5 {[%emt 0:00:20]} 23. Nd2 {[%emt 0:00:37]} Rd8 {[%emt 0:03:20]} 24. Nc4 {[%emt 0:00:13]} Qe6 {[%emt 0:01:07]} 25. Rd1 {[%emt 0:01:21]} Rxd1+ {[%emt 0:08:46]} 26. Qxd1 {[%emt 0:00:14]} h6 {[%emt 0:06:18]} 27. b3 {[%emt 0:03:06]} Nd7 {[%emt 0:05:42]} 28. Qf3 {[%emt 0:02:33]} Kh7 {[%emt 0:05:31]} 29. Qb7 {[%emt 0:02:55]} g6 {[%emt 0:01:08]} 30. e4 {[%emt 0:01:15]} g5 {[%emt 0:03:01]} 31. Qc7 {[%emt 0:03:14]} Kg7 {[%emt 0:01:50]} 32. f3 {[%emt 0:01:31]} h5 {[%emt 0:02:20]} 33. Qd8 {[%emt 0:05:44]} f6 {[%emt 0:01:43]} 34. Ne3 {[%emt 0:01:28]} Qf7 {[%emt 0:02:43]} 35. Nd5 {[%emt 0:03:59]} Qe6 {[%emt 0:00:40]} 36. Nc7 {[%emt 0:05:13]} Qf7 {[%emt 0:00:32]} 37. Ne8+ {[%emt 0:00:03]} Kh7 {[%emt 0:00:31]} 38. Qxd7 {[%emt 0:00:15]} Kg6 {[%emt 0:02:09]} 39. Qd8 {[%emt 0:00:30]} 1-0

[Event "98th Caplin Hastings Masters 2024-25"]
[Site "Hastings"]
[Date "2024.12.30"]
[Round "4.33"]
[White "Brown, Tom"]
[Black "Mikalajunas, Kajus"]
[Result "1-0"]
[ECO "D20"]
[WhiteElo "1932"]
[BlackElo "1941"]
[Annotator "RC"]
[PlyCount "89"]
[EventDate "2024.12.23"]
[EventType "swiss"]
[EventCountry "ENG"]
[SourceTitle "playchess.com"]
[Source "ChessBase"]
[SourceQuality "1"]
[TimeControl "5400+30"]

1. d4 {[%emt 0:00:03]} d5 {[%emt 0:00:02]} 2. c4 {[%emt 0:00:06]} dxc4 {[%emt 0:00:02]} 3. e3 {[%emt 0:00:08]} e5 {[%emt 0:00:03]} 4. Bxc4 {[%emt 0:00:07]} exd4 {[%emt 0:00:02]} 5. exd4 {[%emt 0:00:10]} Bd6 {[%emt 0:00:03]} 6. Nf3 {[%emt 0:00:35]} Nf6 {[%emt 0:00:03]} 7. Qe2+ {[%emt 0:00:11]} Be7 {[%emt 0:00:02]} 8. O-O {[%emt 0:00:23]} O-O {[%emt 0:00:04]} 9. Nc3 {[%emt 0:00:15]} Nc6 {[%emt 0:04:08]} 10. h3 {[%emt 0:02:40]} h6 {[%emt 0:01:17]} 11. Rd1 {[%emt 0:02:18]} Bd6 {[%emt 0:04:13]} 12. Ne5 {[%emt 0:07:18]} Qe8 {[%emt 0:12:30]} 13. Bf4 {[%emt 0:12:57]} Nd7 {[%emt 0:10:27]} 14. Nxc6 {[%emt 0:19:47]} bxc6 {[%emt 0:04:46]} 15. Qf3 {[%emt 0:03:31]} Nb6 {[%emt 0:02:03]} 16. Bd3 {[%emt 0:03:10]} Be6 {[%emt 0:04:51]} 17. Be4 {[%emt 0:03:29]} Bd7 {[%emt 0:04:05]} 18. Re1 {[%emt 0:07:01]} Qc8 {[%emt 0:01:14]} 19. Bc2 {[%emt 0:03:17]} Qd8 {[%emt 0:04:21]} 20. Qd3 {[%emt 0:03:54]} f5 {[%emt 0:00:29]} 21. Be5 {[%emt 0:02:50]} Bxe5 {[%emt 0:05:39]} 22. Rxe5 {[%emt 0:00:33]} Qf6 {[%emt 0:01:15]} 23. Rae1 {[%emt 0:02:28]} Rad8 {[%emt 0:01:26]} 24. Ne2 {[%emt 0:04:23]} Nd5 {[%emt 0:09:20]} 25. Bb3 {[%emt 0:01:05]} Kh8 {[%emt 0:04:14]} 26. Bxd5 {[%emt 0:00:58]} cxd5 {[%emt 0:00:12]} 27. Nf4 {[%emt 0:01:23]} c6 {[%emt 0:00:56]} 28. Qg3 {[%emt 0:05:04]} g5 {[%emt 0:06:34]} 29. Ne6 {[%emt 0:00:52]} Bxe6 {[%emt 0:03:12]} 30. Rxe6 {[%emt 0:00:03]} Qg7 {[%emt 0:00:20]} 31. Rxc6 {[%emt 0:03:21]} Rf6 {[%emt 0:02:39]} 32. Qc7 {[%emt 0:03:20]} Rdf8 {[%emt 0:04:32]} 33. Qxg7+ {[%emt 0:00:32]} Kxg7 {[%emt 0:00:01]} 34. Rc7+ {[%emt 0:01:20]} Kg6 {[%emt 0:01:46]} 35. Rxa7 {[%emt 0:00:18]} Rc8 {[%emt 0:00:45]} 36. b4 {[%emt 0:02:03]} Rc4 {[%emt 0:00:30]} 37. Rb1 {[%emt 0:00:07]} Rxd4 {[%emt 0:00:33]} 38. b5 {[%emt 0:00:12]} Rb6 {[%emt 0:03:23]} 39. a4 {[%emt 0:00:24]} Kf6 {[%emt 0:01:20]} 40. a5 {[%emt 0:01:00]} Rb8 {[%emt 0:00:02]} 41. b6 {[%emt 0:00:36]} Re4 {[%emt 0:02:09]} 42. b7 {[%emt 0:02:09]} Re6 {[%emt 0:00:55]} 43. Ra8 {[%emt 0:00:18]} Ree8 {[%emt 0:00:36]} 44. Rxb8 {[%emt 0:00:07]} Rxb8 {[%emt 0:00:04]} 45. a6 {[%emt 0:00:04]} 1-0